bitfinex-derivatives/quotes_ETHF0:USTF0_20230903
["timestamp","ask_amount","ask_price","bid_price","bid_amount"]
[1693710594075,11.47889531,1635.6,1635.5,11.14671781]
[1693710599676,8.61173179,1635.6,1635.5,11.14671781]
[1693710600377,11.47889531,1635.6,1635.5,11.14671781]
[1693710602378,8.61173179,1635.6,1635.5,11.14671781]
[1693710606690,11.47889531,1635.6,1635.5,11.14671781]
[1693710608290,8.61173179,1635.6,1635.5,11.14671781]
[1693710626703,6.12423179,1635.6,1635.5,11.14671781]
[1693710627201,8.64763179,1635.6,1635.5,11.14671781]
[1693710632702,8.64763179,1635.6,1635.5,11.14876042]
[1693710654523,11.51479531,1635.6,1635.5,11.14876042]
[1693710658520,8.64763179,1635.6,1635.5,11.14876042]
[1693710693651,8.64763179,1635.6,1635.5,11.14409784]
[1693710693852,8.64763179,1635.6,1635.5,11.14878261]
[1693710698255,11.51479531,1635.6,1635.5,11.14878261]
[1693710698759,8.64763179,1635.6,1635.5,11.14878261]
[1693710700061,11.51479531,1635.6,1635.5,11.14878261]
[1693710701970,8.64763179,1635.6,1635.5,11.14878261]
[1693710714865,11.70516179,1635.6,1635.5,11.14878261]
[1693710718374,14.57232531,1635.6,1635.5,11.14878261]
[1693710720175,11.70516179,1635.6,1635.5,11.14878261]
[1693710721577,14.57232531,1635.6,1635.5,11.14878261]
[1693710723475,11.70516179,1635.6,1635.5,11.14878261]
[1693710727277,17.62985531,1635.6,1635.5,0.00672738]
[1693710727876,17.62985531,1635.6,1635.5,3.06443738]
[1693710728074,14.57232531,1635.6,1635.5,3.06443738]
[1693710728475,14.57232531,1635.6,1635.5,6.12214738]
[1693710731883,20.08132531,1635.6,1635.5,6.12214738]
[1693710738388,20.08132531,1635.6,1635.5,8.87505941]
[1693710739488,20.08132531,1635.6,1635.5,6.12214738]
[1693710742592,20.08132531,1635.6,1635.5,8.87505941]
[1693710747189,20.08132531,1635.6,1635.5,6.12214738]
[1693710747695,20.08132531,1635.6,1635.5,8.87505941]
[1693710748398,20.08132531,1635.6,1635.5,6.12214738]
[1693710748593,20.08132531,1635.6,1635.5,8.87505941]
[1693710748594,17.21416179,1635.6,1635.5,8.87505941]
[1693710749298,20.08132531,1635.6,1635.5,8.87505941]
[1693710751902,14.57232531,1635.6,1635.5,8.87505941]
[1693710752702,14.57232531,1635.6,1635.5,6.12214738]
[1693710760314,14.57232531,1635.6,1635.5,8.87505941]
[1693710760914,14.57232531,1635.6,1635.5,6.12214738]
[1693710761711,14.57232531,1635.6,1635.5,8.87505941]
[1693710761917,20.08132531,1635.6,1635.5,8.87505941]
[1693710767221,20.08132531,1635.6,1635.5,6.12214738]
[1693710767920,20.08132531,1635.6,1635.5,8.87505941]
[1693710768123,20.08132531,1635.6,1635.5,6.12214738]
[1693710768419,20.08132531,1635.6,1635.5,9.17985738]
[1693710768615,20.08132531,1635.6,1635.5,11.93276941]
[1693710771623,10.90873531,1635.6,1635.5,11.93276941]
[1693710772021,13.96625531,1635.6,1635.5,11.93276941]
[1693710772222,17.02377531,1635.6,1635.5,11.93276941]
[1693710773912,14.15661179,1635.6,1635.5,11.93276941]
[1693710774423,17.21413179,1635.6,1635.5,11.93276941]
[1693710785330,8.57569179,1635.6,1635.5,11.99386941]
[1693710785530,0.00917179,1635.6,1635.5,15.05157941]
[1693710785728,6.59702387,1635.8,1635.6,2.33103648]
[1693710785932,9.65434387,1635.8,1635.7,11.98603203]
[1693710786331,9.65434387,1635.8,1635.7,17.49503203]
[1693710786832,9.65434387,1635.8,1635.7,17.50114558]
[1693710788027,9.65434387,1635.8,1635.7,14.44380558]
[1693710791935,9.65434387,1635.8,1635.7,8.93480558]
[1693710800935,9.65434387,1635.8,1635.7,8.87370558]
[1693710801135,9.65434387,1635.8,1635.7,9.3513774]
[1693710808238,12.25634387,1635.8,1635.7,9.3513774]
[1693710818554,15.12350739,1635.8,1635.7,9.3513774]
[1693710823154,12.25634387,1635.8,1635.7,9.3513774]
[1693710825356,15.12350739,1635.8,1635.7,6.59846537]
[1693710826057,15.12350739,1635.8,1635.7,9.3513774]
[1693710826355,12.25634387,1635.8,1635.7,9.3513774]
[1693710834765,15.12350739,1635.8,1635.7,9.3513774]
[1693710837061,12.25634387,1635.8,1635.7,9.3513774]
[1693710842279,15.12350739,1635.8,1635.7,9.3513774]
[1693710846889,15.12350739,1635.8,1635.7,6.12079355]
[1693710847090,23.68980739,1635.8,1635.7,0.00611355]
[1693710847586,26.27790739,1635.8,1635.7,0.00611355]
[1693710847987,26.27790739,1635.8,1635.6,6.11492]
[1693710848891,26.27790739,1635.8,1635.7,0.00611053]
[1693710849091,27.63045384,1635.8,1635.7,0.00611053]
[1693710849890,27.63045384,1635.8,1635.7,3.05734]
[1693710851693,27.63045384,1635.8,1635.6,9.65443576]
[1693710851991,27.63045384,1635.8,1635.7,3.06345053]
[1693710871600,24.57313384,1635.8,1635.7,6.12079053]
[1693710872199,24.57313384,1635.8,1635.7,3.06345053]
[1693710877501,27.63043384,1635.8,1635.7,0.00611053]
[1693710877707,27.63043384,1635.8,1635.6,0.0611]
[1693710878006,5.509,1635.7,1635.6,0.0611]
[1693710878195,17.73836,1635.7,1635.6,0.0611]
[1693710885901,17.73836,1635.7,1635.6,0.0669883]
[1693710893307,17.73836,1635.7,1635.6,0.0058883]
[1693710893605,17.73836,1635.7,1635.5,5.52989]
[1693710893809,5.509,1635.6,1635.5,5.52989]
[1693710894109,18.90129997,1635.6,1635.5,5.52989]
[1693710898815,18.90129997,1635.6,1635.5,8.28280203]
[1693710900911,18.90129997,1635.6,1635.5,2.47786984]
[1693710901719,21.95882997,1635.6,1635.5,2.47786984]
[1693710906415,21.95882997,1635.6,1635.5,0.00566984]
[1693710906618,5.57,1635.5,1635.3,2.93923836]
[1693710906821,21.96030997,1635.4,1635.1,8.52521]
[1693710907122,5.509,1635.3,1635.2,3.05827]
[1693710907310,5.509,1635.3,1635.1,11.58363]
[1693710907311,17.74136,1635.3,1635.1,11.58363]
[1693710907517,4.21970997,1635.2,1635.1,8.52521]
[1693710907817,13.39451997,1635.2,1635.1,8.52521]
[1693710909624,13.39451997,1635.2,1635.1,11.27812203]
[1693710909825,13.39451997,1635.2,1635.1,11.7666182]
[1693710910821,13.39451997,1635.2,1635.1,9.01370617]
[1693710912928,13.39451997,1635.2,1635.1,11.7666182]
[1693710913328,13.39451997,1635.2,1635.1,9.01370617]
[1693710914926,13.39451997,1635.2,1635.1,9.01918998]
[1693710917131,13.39451997,1635.2,1635.1,11.77210201]
[1693710918530,10.52735645,1635.2,1635.1,11.77210201]
[1693710921534,13.04755645,1635.2,1635.1,11.77210201]
[1693710922028,2.5202,1635.2,1635.1,20.33956201]
[1693710922229,6.1163,1635.3,1635.1,20.33956201]
[1693710922834,6.1163,1635.3,1635.2,2.26993648]
[1693710923032,6.1163,1635.3,1635.2,8.38647648]
[1693710924234,9.17453,1635.3,1635.2,5.32820648]
[1693710925336,9.17453,1635.3,1635.2,8.38647648]
[1693710926930,9.17453,1635.3,1635.2,8.39195228]
[1693710928136,6.1163,1635.3,1635.2,8.39195228]
[1693710928623,9.17453,1635.3,1635.2,8.39195228]
[1693710935744,9.17453,1635.3,1635.2,5.33368228]
[1693710941035,12.04169352,1635.3,1635.2,5.33368228]
[1693710941848,9.17453,1635.3,1635.2,5.33368228]
[1693710942349,12.04169352,1635.3,1635.2,5.33368228]
[1693710945251,9.17453,1635.3,1635.2,3.0637458]
[1693710945452,12.04169352,1635.3,1635.2,3.0637458]
[1693710949351,9.17453,1635.3,1635.2,3.0637458]
[1693710949752,9.17453,1635.3,1635.2,6.1220158]
[1693710950149,9.17453,1635.3,1635.2,3.0637458]
[1693710952956,9.17453,1635.3,1635.2,6.1220158]
[1693710953556,9.17453,1635.3,1635.2,3.0637458]
[1693710956155,12.04169352,1635.3,1635.2,3.0637458]
[1693710956756,9.17453,1635.3,1635.2,3.0637458]
[1693710958158,12.04169352,1635.3,1635.2,3.0637458]
[1693710960154,9.17453,1635.3,1635.2,3.0637458]
[1693710960350,9.17453,1635.3,1635.2,6.1220158]
[1693710961361,9.17453,1635.3,1635.2,3.0637458]
[1693710961561,12.04169352,1635.3,1635.2,3.0637458]
[1693710961761,9.17453,1635.3,1635.2,3.0637458]
[1693710962261,9.17453,1635.3,1635.2,6.1220158]
[1693710962465,9.17453,1635.3,1635.2,3.0637458]
[1693710962761,12.04169352,1635.3,1635.2,3.0637458]
[1693710963564,9.17453,1635.3,1635.2,3.0637458]
[1693710966958,9.17453,1635.3,1635.2,6.1220158]
[1693710967661,9.17453,1635.3,1635.2,3.0637458]
[1693710968265,12.04169352,1635.3,1635.2,3.0637458]
[1693710969868,9.17453,1635.3,1635.2,3.0637458]
[1693710972562,12.04169352,1635.3,1635.2,3.0637458]
[1693710973066,9.17453,1635.3,1635.2,3.0637458]
[1693710974470,12.04169352,1635.3,1635.2,3.0637458]
[1693710974665,9.17453,1635.3,1635.2,3.0637458]
[1693710976768,9.17453,1635.3,1635.2,6.1220158]
[1693710979370,9.17453,1635.3,1635.2,3.0637458]
[1693710980374,9.17453,1635.3,1635.2,6.1220158]
[1693710980872,12.04169352,1635.3,1635.2,6.1220158]
[1693710983574,9.17453,1635.3,1635.2,6.1220158]
[1693710985075,12.04169352,1635.3,1635.2,6.1220158]
[1693710985376,9.17453,1635.3,1635.2,6.1220158]
[1693710986378,12.04169352,1635.3,1635.2,6.1220158]
[1693710988082,9.17453,1635.3,1635.2,6.1220158]
[1693710989785,3.05809,1635.3,1635.2,9.1802958]
[1693710989986,3.05809,1635.3,1635.2,14.6892958]
[1693710991087,2.5202,1635.4,1635.2,17.7475758]
[1693710991287,2.5202,1635.4,1635.3,2.33113648]
[1693710991482,8.63604,1635.4,1635.3,14.25831851]
[1693710992088,8.63604,1635.4,1635.3,19.7737698]
[1693710993491,5.57812,1635.4,1635.3,19.7737698]
[1693710995388,2.5202,1635.4,1635.3,19.7737698]
[1693710996091,5.5781,1635.4,1635.3,19.7737698]
[1693710996483,8.636,1635.4,1635.3,19.7737698]
[1693711003689,5.5781,1635.4,1635.3,19.7737698]
[1693711005994,5.5781,1635.4,1635.3,19.7125698]
[1693711006196,5.5781,1635.4,1635.3,20.20003446]
[1693711011100,8.44526352,1635.4,1635.3,20.20003446]
[1693711011607,5.5781,1635.4,1635.3,20.20003446]
[1693711013103,8.44526352,1635.4,1635.3,20.20003446]
[1693711013294,10.84366352,1635.4,1635.3,20.20003446]
[1693711013497,7.9765,1635.4,1635.3,20.20003446]
[1693711013801,11.0344,1635.4,1635.3,20.20003446]
[1693711016902,7.9765,1635.4,1635.3,20.20003446]
[1693711031305,10.84366352,1635.4,1635.3,20.20003446]
[1693711031806,7.9765,1635.4,1635.3,20.20003446]
[1693711034208,10.84366352,1635.4,1635.3,20.20003446]
[1693711035713,7.9765,1635.4,1635.3,20.20003446]
[1693711037311,10.84366352,1635.4,1635.3,20.20003446]
[1693711038319,10.84366352,1635.4,1635.3,17.93009798]
[1693711040522,7.9765,1635.4,1635.3,17.93009798]
[1693711045425,10.84366352,1635.4,1635.3,17.93009798]
[1693711046527,7.9765,1635.4,1635.3,17.93009798]
[1693711048127,10.84366352,1635.4,1635.3,17.93009798]
[1693711048629,7.9765,1635.4,1635.3,17.93009798]
[1693711050135,10.84366352,1635.4,1635.3,17.93009798]
[1693711052032,7.9765,1635.4,1635.3,17.93009798]
[1693711052231,10.84366352,1635.4,1635.3,17.93009798]
[1693711054429,7.9765,1635.4,1635.3,17.93009798]
[1693711057336,10.84366352,1635.4,1635.3,17.93009798]
[1693711058838,7.9765,1635.4,1635.3,17.93009798]
[1693711059236,10.84366352,1635.4,1635.3,17.93009798]
[1693711060843,7.9765,1635.4,1635.3,17.93009798]
[1693711061240,10.84366352,1635.4,1635.3,17.93009798]
[1693711062840,7.9765,1635.4,1635.3,17.93009798]
[1693711064551,10.84366352,1635.4,1635.3,17.93009798]
[1693711066255,7.9765,1635.4,1635.3,17.93009798]
[1693711074266,16.95946352,1635.4,1635.3,0.49391595]
[1693711074855,16.95946352,1635.4,1635.3,3.55200595]
[1693711075069,16.95946352,1635.4,1635.3,6.61009595]
[1693711075857,16.95946352,1635.4,1635.3,3.55200595]
[1693711075858,22.46846352,1635.4,1635.3,3.55200595]
[1693711076668,22.46846352,1635.4,1635.3,6.61009595]
[1693711076960,22.46846352,1635.4,1635.3,3.55200595]
[1693711077161,22.46846352,1635.4,1635.3,6.61009595]
[1693711077357,22.46846352,1635.4,1635.3,3.55200595]
[1693711077553,22.46846352,1635.4,1635.3,6.61009595]
[1693711077863,22.46846352,1635.4,1635.3,3.55200595]
[1693711078362,22.46846352,1635.4,1635.3,6.61009595]
[1693711079367,22.46846352,1635.4,1635.3,3.55200595]
[1693711079565,22.46846352,1635.4,1635.3,6.61009595]
[1693711080269,19.41056352,1635.4,1635.3,6.61009595]
[1693711087078,19.41056352,1635.4,1635.3,9.66818595]
[1693711087668,19.41056352,1635.4,1635.3,12.42109798]
[1693711088577,19.41056352,1635.4,1635.3,9.66818595]
[1693711089879,16.5434,1635.4,1635.3,12.42109798]
[1693711090676,19.41056352,1635.4,1635.3,12.42109798]
[1693711090877,19.41056352,1635.4,1635.1,5.99749617]
[1693711091075,9.17541,1635.1,1634.8,6.11788]
[1693711091270,11.68768,1634.9,1634.8,9.17691]
[1693711091676,11.68768,1634.9,1634.8,6.11788]
[1693711091880,16.09906645,1634.9,1634.8,6.11788]
[1693711092077,16.09906645,1634.9,1634.8,6.12261609]
[1693711092272,16.09906645,1634.9,1634.8,3.06363609]
[1693711093174,16.09906645,1634.9,1634.8,0.00473609]
[1693711098880,19.15790645,1634.9,1634.8,0.00473609]
[1693711109894,24.10740645,1634.9,1634.8,0.00473609]
[1693711110094,24.10740645,1634.9,1634.5,8.55443]
[1693711110095,0.061,1634.8,1634.5,8.55443]
[1693711110393,24.04640645,1634.9,1634.5,8.55443]
[1693711110394,5.509,1634.6,1634.5,8.55443]
[1693711110587,14.68726,1634.6,1634.5,11.30734203]
[1693711110890,6.11884,1634.6,1634.5,11.30734203]
[1693711111087,6.11884,1634.6,1634.5,14.37170244]
[1693711111892,6.11884,1634.6,1634.5,19.88070244]
[1693711113188,9.17826,1634.6,1634.5,19.88070244]
[1693711114286,9.17826,1634.6,1634.5,21.48559671]
[1693711116187,12.04542352,1634.6,1634.5,21.48559671]
[1693711116394,8.26023136,1634.6,1634.5,25.34813934]
[1693711119296,11.12739488,1634.6,1634.5,25.34813934]
[1693711119597,11.12739488,1634.6,1634.5,22.94079793]
[1693711119797,8.26023136,1634.6,1634.5,22.94079793]
[1693711120292,8.26023136,1634.6,1634.5,26.15058648]
[1693711120494,8.26023136,1634.6,1634.5,22.94079793]
[1693711120693,8.26023136,1634.6,1634.5,26.15058648]
[1693711123392,8.26023136,1634.6,1634.5,25.34085528]
[1693711124006,8.26023136,1634.6,1634.5,26.94102256]
[1693711125106,8.26023136,1634.6,1634.5,25.34085528]
[1693711125507,8.26023136,1634.6,1634.5,26.94117908]
[1693711126105,8.26023136,1634.6,1634.5,25.34085528]
[1693711126613,8.26023136,1634.6,1634.5,26.94135961]
[1693711127509,8.26023136,1634.6,1634.5,24.54130226]
[1693711127710,8.26023136,1634.6,1634.5,26.94135961]
[1693711128315,11.12739488,1634.6,1634.5,26.94135961]
[1693711128515,8.26023136,1634.6,1634.5,24.54130226]
[1693711129211,8.26023136,1634.6,1634.5,26.94135961]
[1693711129615,8.26023136,1634.6,1634.5,24.54130226]
[1693711130318,11.12739488,1634.6,1634.5,24.54130226]
[1693711130523,8.26023136,1634.6,1634.5,24.54130226]
[1693711131014,8.26023136,1634.6,1634.5,19.03230226]
[1693711131518,8.26023136,1634.6,1634.5,21.43235961]
[1693711132320,11.12739488,1634.6,1634.5,21.43235961]
[1693711132519,11.12739488,1634.6,1634.5,19.03230226]
[1693711133418,11.12739488,1634.6,1634.5,21.43235961]
[1693711133620,11.12739488,1634.6,1634.5,19.03230226]
[1693711134323,11.12739488,1634.6,1634.5,16.27939023]
[1693711134715,11.12739488,1634.6,1634.5,19.03230226]
[1693711135418,11.12739488,1634.6,1634.5,21.43235961]
[1693711135616,11.12739488,1634.6,1634.5,19.03230226]
[1693711136119,11.12739488,1634.6,1634.5,19.83185528]
[1693711136520,11.18839488,1634.6,1634.5,17.07894325]
[1693711136714,11.18839488,1634.6,1634.5,18.68338655]
[1693711137618,11.18839488,1634.6,1634.5,16.2833292]
[1693711137920,8.32123136,1634.6,1634.5,19.03624123]
[1693711138419,11.18839488,1634.6,1634.5,19.03624123]
[1693711138617,11.18839488,1634.6,1634.5,14.37170244]
[1693711138821,11.18839488,1634.6,1634.5,19.83184255]
[1693711139624,11.18839488,1634.6,1634.5,21.43642826]
[1693711140722,11.18839488,1634.6,1634.5,18.68351623]
[1693711141124,11.18839488,1634.6,1634.5,21.43642826]
[1693711141625,11.18839488,1634.6,1634.5,19.03637091]
[1693711141925,16.69739488,1634.6,1634.5,19.03637091]
[1693711142124,13.83023136,1634.6,1634.5,19.03637091]
[1693711142525,16.69739488,1634.6,1634.5,13.22337612]
[1693711143226,16.69739488,1634.6,1634.5,15.97628815]
[1693711144127,16.69739488,1634.6,1634.5,14.37170244]
[1693711144927,16.69739488,1634.6,1634.5,11.61879041]
[1693711149634,16.69739488,1634.6,1634.5,6.12379041]
[1693711151136,16.69739488,1634.6,1634.5,3.06425041]
[1693711153437,16.69739488,1634.6,1634.5,6.12385041]
[1693711163045,16.69739488,1634.6,1634.5,8.87676244]
[1693711163746,16.69739488,1634.6,1634.5,6.12385041]
[1693711164441,16.69739488,1634.6,1634.5,3.06425041]
[1693711165149,16.69739488,1634.6,1634.5,6.12385041]
[1693711172759,19.75681488,1634.6,1634.5,0.00476041]
[1693711206282,19.75681488,1634.6,1634.5,2.75767244]
[1693711207683,19.75681488,1634.6,1634.5,0.00476041]
[1693711216787,19.75681488,1634.6,1634.5,2.75767244]
[1693711217681,16.88965136,1634.6,1634.5,2.75767244]
[1693711218287,19.75681488,1634.6,1634.5,2.75767244]
[1693711219589,19.75681488,1634.6,1634.5,0.00476041]
[1693711225983,19.75681488,1634.6,1634.5,2.75767244]
[1693711227996,16.88965136,1634.6,1634.5,2.75767244]
[1693711229392,16.88965136,1634.6,1634.5,0.00476041]
[1693711229593,19.75681488,1634.6,1634.5,0.00476041]
[1693711253316,14.68635,1634.8,1634.5,17.44541244]
[1693711253511,14.74735,1634.8,1634.5,17.44541244]
[1693711253722,11.68818,1634.8,1634.7,0.0612]
[1693711253923,14.74735,1634.8,1634.7,8.14325851]
[1693711254218,14.74735,1634.8,1634.7,8.14904373]
[1693711254416,11.68818,1634.8,1634.7,11.20825373]
[1693711257517,5.509,1634.8,1634.7,11.20825373]
[1693711257717,8.56802,1634.8,1634.7,14.26746373]
[1693711257923,11.62704,1634.8,1634.7,14.26746373]
[1693711258623,11.62704,1634.8,1634.7,11.20825373]
[1693711261921,6.11804,1634.8,1634.7,11.20825373]
[1693711263126,3.05902,1634.8,1634.7,11.20825373]
[1693711263427,14.74686,1634.9,1634.7,14.26746373]
[1693711267931,14.74686,1634.9,1634.7,14.75053931]
[1693711270835,11.68786,1634.9,1634.7,14.75053931]
[1693711272030,6.17886,1634.9,1634.7,20.25953931]
[1693711286760,9.04602352,1634.9,1634.7,20.25953931]
[1693711287659,6.17886,1634.9,1634.7,20.25953931]
[1693711291759,0.061,1634.9,1634.7,23.31877931]
[1693711291958,16.82078,1635.1,1634.8,14.68606]
[1693711292155,13.76224,1635.1,1634.8,22.87138]
[1693711292563,19.87924,1635.1,1634.8,22.87138]
[1693711292756,16.8207,1635.1,1634.8,22.87138]
[1693711293157,16.8207,1635.1,1635.0,3.05865]
[1693711293355,16.8207,1635.1,1635.0,5.81156203]
[1693711293863,19.87917,1635.1,1635.0,2.75291203]
[1693711294265,16.82063,1635.1,1635.0,5.81156203]
[1693711295262,16.82062,1635.1,1635.0,5.81156203]
[1693711297466,19.87908,1635.1,1635.0,5.81156203]
[1693711302168,19.87908,1635.1,1635.0,5.81732275]
[1693711304774,16.82062,1635.1,1635.0,5.81732275]
[1693711305075,19.87908,1635.1,1635.0,5.81732275]
[1693711305277,22.74624352,1635.1,1635.0,5.81732275]
[1693711306177,22.74624352,1635.1,1635.0,3.06441072]
[1693711306475,22.74624352,1635.1,1635.0,0.00576072]
[1693711306678,22.74624352,1635.1,1635.0,3.06441072]
[1693711307077,22.74625352,1635.1,1635.0,3.06441072]
[1693711308073,22.74625352,1635.1,1635.0,5.81732275]
[1693711309081,22.74625352,1635.1,1635.0,2.75867275]
[1693711309474,22.74625352,1635.1,1635.0,5.81734275]
[1693711311473,22.74625352,1635.1,1635.0,2.75867275]
[1693711311873,22.74625352,1635.1,1635.0,5.81734275]
[1693711312173,19.87909,1635.1,1635.0,5.81734275]
[1693711312478,16.82062,1635.1,1635.0,8.87601275]
[1693711312675,14.22822,1635.1,1635.0,8.87601275]
[1693711312877,17.2867,1635.1,1635.0,5.81734275]
[1693711313073,17.2867,1635.1,1635.0,2.75867275]
[1693711313273,17.2867,1635.1,1635.0,5.81734275]
[1693711314074,17.2867,1635.1,1635.0,2.75867275]
[1693711314281,17.2867,1635.1,1635.0,5.81734275]
[1693711314582,17.2867,1635.1,1635.0,2.75867275]
[1693711315183,17.2867,1635.1,1635.0,5.81734275]
[1693711316078,17.2867,1635.1,1635.0,2.75867275]
[1693711316282,17.2867,1635.1,1635.0,5.81732275]
[1693711317184,14.6844,1635.1,1635.0,5.81732275]
[1693711318585,14.6844,1635.1,1635.0,2.75867275]
[1693711318980,14.6844,1635.1,1635.0,5.33837275]
[1693711319379,14.6844,1635.1,1635.0,8.39704275]
[1693711320083,14.6844,1635.1,1635.0,5.33837275]
[1693711320287,14.6844,1635.1,1635.0,11.45571275]
[1693711320884,14.6844,1635.1,1635.0,8.39704275]
[1693711321282,14.6844,1635.1,1635.0,5.33837275]
[1693711322689,14.6844,1635.1,1635.0,8.39704275]
[1693711322885,14.6844,1635.1,1635.0,7.73487275]
[1693711323187,17.55156352,1635.1,1635.0,7.73487275]
[1693711323488,14.6844,1635.1,1635.0,7.73487275]
[1693711323992,17.55156352,1635.1,1635.0,7.73487275]
[1693711324191,17.55156352,1635.1,1635.0,10.79354275]
[1693711324688,17.55156352,1635.1,1635.0,7.73487275]
[1693711324893,17.55156352,1635.1,1635.0,4.98196072]
[1693711325285,17.55156352,1635.1,1635.0,10.79354275]
[1693711325694,14.6844,1635.1,1635.0,10.79354275]
[1693711325991,17.55156352,1635.1,1635.0,7.73487275]
[1693711326391,17.55156352,1635.1,1635.0,10.79354275]
[1693711326787,14.6844,1635.1,1635.0,10.79354275]
[1693711326984,17.55156352,1635.1,1635.0,10.79354275]
[1693711327182,17.55156352,1635.1,1635.0,10.79352275]
[1693711327790,14.6844,1635.1,1635.0,10.79352275]
[1693711327991,17.55156352,1635.1,1635.0,10.79352275]
[1693711328293,17.55156352,1635.1,1635.0,7.73487275]
[1693711328884,14.6844,1635.1,1635.0,10.79354275]
[1693711329090,17.55156352,1635.1,1635.0,10.79354275]
[1693711329696,17.55156352,1635.1,1635.0,10.79352275]
[1693711329891,14.6844,1635.1,1635.0,10.79352275]
[1693711330192,17.55156352,1635.1,1635.0,10.79352275]
[1693711330593,14.6844,1635.1,1635.0,10.79352275]
[1693711331195,17.55156352,1635.1,1635.0,10.79352275]
[1693711332096,14.6844,1635.1,1635.0,10.79352275]
[1693711333096,14.6844,1635.1,1635.0,5.81732275]
[1693711334892,17.55156352,1635.1,1635.0,5.81732275]
[1693711336198,14.6844,1635.1,1635.0,5.81732275]
[1693711336498,17.55156352,1635.1,1635.0,5.81732275]
[1693711337101,14.6844,1635.1,1635.0,5.81732275]
[1693711338500,17.55156352,1635.1,1635.0,5.81732275]
[1693711340601,14.6844,1635.1,1635.0,5.81732275]
[1693711340900,17.55156352,1635.1,1635.0,5.67941072]
[1693711341502,17.55156352,1635.1,1635.0,8.43232275]
[1693711342603,14.6844,1635.1,1635.0,8.43232275]
[1693711342997,17.55156352,1635.1,1635.0,13.97217275]
[1693711343505,14.6844,1635.1,1635.0,10.91352275]
[1693711344103,17.55156352,1635.1,1635.0,10.91352275]
[1693711344902,14.6844,1635.1,1635.0,10.91352275]
[1693711346103,17.55156352,1635.1,1635.0,10.91352275]
[1693711346806,14.6844,1635.1,1635.0,10.91352275]
[1693711347204,17.55156352,1635.1,1635.0,10.91352275]
[1693711348308,17.55156352,1635.1,1635.0,13.97219275]
[1693711348602,14.6844,1635.1,1635.0,13.97219275]
[1693711350906,11.62592,1635.1,1635.0,13.97219275]
[1693711352612,14.49308352,1635.1,1635.0,13.97219275]
[1693711353003,11.62592,1635.1,1635.0,13.97219275]
[1693711353710,14.49308352,1635.1,1635.0,13.97219275]
[1693711354209,11.62592,1635.1,1635.0,13.97219275]
[1693711354610,14.49308352,1635.1,1635.0,13.97219275]
[1693711355113,17.55156352,1635.1,1635.0,13.97219275]
[1693711357013,14.6844,1635.1,1635.0,13.97219275]
[1693711358813,17.55156352,1635.1,1635.0,13.97219275]
[1693711360417,14.6844,1635.1,1635.0,13.97219275]
[1693711360918,17.55156352,1635.1,1635.0,13.97219275]
[1693711361615,14.6844,1635.1,1635.0,13.97219275]
[1693711362417,11.62592,1635.1,1635.0,13.97219275]
[1693711363916,14.49308352,1635.1,1635.0,13.97219275]
[1693711364421,11.62592,1635.1,1635.0,13.97219275]
[1693711366018,5.509,1635.1,1635.0,13.97219275]
[1693711367124,11.62595,1635.1,1635.0,13.97219275]
[1693711368127,8.56746,1635.1,1635.0,13.97219275]
[1693711369320,11.43462352,1635.1,1635.0,13.97219275]
[1693711369721,8.56746,1635.1,1635.0,13.97219275]
[1693711369921,5.509,1635.1,1635.0,13.97219275]
[1693711370228,8.37616352,1635.1,1635.0,13.97219275]
[1693711370628,14.49312352,1635.1,1635.0,13.97219275]
[1693711371023,11.62596,1635.1,1635.0,13.97219275]
[1693711371223,14.49312352,1635.1,1635.0,13.97219275]
[1693711373434,14.49312352,1635.1,1635.0,11.21928072]
[1693711373823,8.37616352,1635.1,1635.0,11.21928072]
[1693711374229,14.49310352,1635.1,1635.0,11.21928072]
[1693711375825,14.49310352,1635.1,1635.0,13.97219275]
[1693711378033,11.62594,1635.1,1635.0,13.97219275]
[1693711378234,11.62594,1635.1,1635.0,10.91352275]
[1693711378535,14.49310352,1635.1,1635.0,8.16061072]
[1693711380235,11.62594,1635.1,1635.0,10.91352275]
[1693711380431,14.49310352,1635.1,1635.0,10.91352275]
[1693711381640,14.49310352,1635.1,1635.0,13.97219275]
[1693711382140,14.49310352,1635.1,1635.0,10.91352275]
[1693711382340,11.62594,1635.1,1635.0,10.91352275]
[1693711383831,14.49310352,1635.1,1635.0,10.91352275]
[1693711385042,14.49310352,1635.1,1635.0,8.16061072]
[1693711385447,14.49310352,1635.1,1635.0,11.21928072]
[1693711386041,14.49310352,1635.1,1635.0,13.97219275]
[1693711386241,14.49310352,1635.1,1635.0,10.91352275]
[1693711386443,11.62594,1635.1,1635.0,10.91352275]
[1693711386946,14.49310352,1635.1,1635.0,10.91352275]
[1693711388043,11.62594,1635.1,1635.0,10.91352275]
[1693711390045,14.49310352,1635.1,1635.0,10.91352275]
[1693711390440,11.62594,1635.1,1635.0,10.91352275]
[1693711390843,11.62594,1635.1,1635.0,5.81732275]
[1693711391039,9.92672653,1635.2,1635.0,14.99333275]
[1693711391040,5.509,1635.2,1635.0,14.99333275]
[1693711391239,5.509,1635.2,1635.1,2.26993648]
[1693711391436,5.509,1635.2,1635.1,11.44537648]
[1693711391644,5.509,1635.2,1635.1,14.03317648]
[1693711391943,11.62528,1635.3,1635.1,14.03317648]
[1693711392145,11.62528,1635.3,1635.2,8.86949203]
[1693711392545,11.62528,1635.3,1635.2,11.27269203]
[1693711392943,9.05428551,1635.3,1635.2,11.27269203]
[1693711393744,12.11244551,1635.3,1635.2,11.27269203]
[1693711407058,12.11244551,1635.3,1635.2,11.27843641]
[1693711407655,12.11244551,1635.3,1635.2,11.76666208]
[1693711410954,9.05428551,1635.3,1635.2,11.76666208]
[1693711415255,12.11244551,1635.3,1635.2,11.76666208]
[1693711416361,9.05428551,1635.3,1635.2,11.76666208]
[1693711420163,5.99616551,1635.3,1635.2,11.76666208]
[1693711420363,9.05427551,1635.3,1635.2,11.76666208]
[1693711420663,5.99616551,1635.3,1635.2,11.76666208]
[1693711420960,9.05427551,1635.3,1635.2,11.76666208]
[1693711421563,5.99616551,1635.3,1635.2,14.82495208]
[1693711441179,9.05425551,1635.3,1635.2,14.82495208]
[1693711450990,8.56709,1635.3,1635.2,14.82495208]
[1693711452283,5.509,1635.3,1635.2,14.82495208]
[1693711453083,8.56708,1635.3,1635.2,14.82495208]
[1693711455288,5.509,1635.3,1635.2,14.82495208]
[1693711493118,8.56709,1635.3,1635.2,14.82495208]
[1693711497319,5.509,1635.3,1635.2,14.82495208]
[1693711497817,8.56709,1635.3,1635.2,14.82495208]
[1693711498020,5.509,1635.3,1635.2,14.82495208]
[1693711501118,8.56709,1635.3,1635.2,14.82495208]
[1693711507121,5.509,1635.3,1635.2,14.82495208]
[1693711508128,8.56709,1635.3,1635.2,14.82495208]
[1693711509330,5.509,1635.3,1635.2,14.82495208]
[1693711509929,8.56711,1635.3,1635.2,14.82495208]